[Event "DLM Youth 2024"]
[Site "Tuebingen"]
[Date "2024.10.03"]
[Round "2"]
[White "Dohon, Maria-Johanna"]
[Black "Schwarzfischer, Julia"]
[Result "0-1"]
[ECO "D35"]
[WhiteElo "1717"]
[BlackElo "1788"]
[Annotator "NA RC"]
[PlyCount "88"]
[EventDate "2024.10.03"]
[EventType "team-swiss"]
[EventRounds "7"]
[EventCountry "GER"]
[SourceTitle "playchess.com"]
[Source "ChessBase"]
[SourceQuality "1"]
[TimeControl "40/5400+30:1800+30"]

1. d4 {[%emt 0:00:05]} d5 {[%emt 0:00:06]} 2. c4 {[%emt 0:00:27]} e6 {[%emt 0:00:36]} 3. Nc3 {[%emt 0:00:23]} Nf6 {[%emt 0:00:28]} 4. Nf3 {[%emt 0:00:53]} h6 {[%emt 0:00:37]} 5. cxd5 {[%emt 0:00:58]} exd5 {[%emt 0:00:51]} 6. Bf4 {[%emt 0:00:35]} a6 {[%emt 0:10:34]} 7. e3 {[%emt 0:01:25]} Nh5 {[%emt 0:05:47]} 8. Bg3 {[%emt 0:08:41]} Nxg3 {[%emt 0:00:22]} 9. hxg3 {[%emt 0:00:13]} Be6 {[%emt 0:04:47]} 10. Bd3 {[%emt 0:03:17]} Nc6 {[%emt 0:01:29]} 11. a3 {[%emt 0:15:06]} Rb8 {[%emt 0:12:04]} 12. Ne2 {[%emt 0:00:00]} g5 {[%emt 0:09:52]} 13. Rc1 {[%emt 0:01:16]} Ra8 {[%emt 0:10:23]} 14. Qc2 {[%emt 0:07:56]} Bd6 {[%emt 0:18:06]} 15. Bf5 {[%emt 0:09:16]} Qf6 {[%emt 0:08:44]} 16. Bxe6 {[%emt 0:07:51]} fxe6 {[%emt 0:00:00]} 17. Nc3 {[%emt 0:04:47]} Kd7 {[%emt 0:00:00]} 18. g4 {[%emt 0:08:58]} Raf8 {[%emt 0:00:13]} 19. Rd1 {[%emt 0:02:22]} Qf7 {[%emt 0:07:36]} 20. Qe2 {[%emt 0:04:00]} Qg6 {[%emt 0:00:46]} 21. Qd3 {[%emt 0:06:06]} Qf6 {[%emt 0:00:55]} 22. Qe2 {[%emt 0:00:18]} Rf7 {[%emt 0:03:25]} 23. Na4 {[%emt 0:02:14]} Kc8 {[%emt 0:02:00]} 24. Rc1 {[%emt 0:01:19]} Rhf8 {[%emt 0:01:06]} 25. Rf1 {[%emt 0:03:52]} e5 {[%emt 0:00:52]} 26. dxe5 {[%emt 0:03:16]} Bxe5 {[%emt 0:00:03]} 27. Nxe5 {[%emt 0:01:26]} Nxe5 {[%emt 0:00:29]} 28. Nc5 {[%emt 0:03:06]} Qb6 {[%emt 0:00:49]} 29. b4 {[%emt 0:01:39]} Nc4 {[%emt 0:00:36]} 30. Qd3 {[%emt 0:01:41]} a5 {[%emt 0:01:03]} 31. Na4 {[%emt 0:00:49]} Qb5 {[%emt 0:00:15]} 32. Nc3 {[%emt 0:00:14]} Qe8 {[%emt 0:01:01]} 33. Ke2 {[%emt 0:01:25]} axb4 {[%emt 0:00:29]} 34. axb4 {[%emt 0:00:09]} Qd7 {[%emt 0:00:19]} 35. Qd4 {[%emt 0:00:55]} Nb6 {[%emt 0:00:32]} 36. Rcd1 {[%emt 0:00:30]} Re7 {[%emt 0:00:25]} 37. Kd2 {[%emt 0:00:36]} Ref7 {[%emt 0:00:18]} 38. Ke2 {[%emt 0:00:09]} Re8 {[%emt 0:00:09]} 39. Kd2 {[%emt 0:00:18]} Nc4+ {[%emt 0:00:15]} 40. Ke2 {[%emt 0:01:16]} Nb6 {[%emt 0:00:41]} 41. Ra1 {[%emt 0:30:42]} Rf4 {[%emt 0:02:44]} 42. Qd2 {[%emt 0:00:00]} d4 {[%emt 0:04:31]} 43. Nd1 {[%emt 0:00:00]} Qxg4+ {[%emt 0:00:35]} 44. Kd3 {[%emt 0:00:00]} dxe3 {[%emt 0:00:39]} 0-1

[Event "DLM Youth 2024"]
[Site "Tuebingen"]
[Date "2024.10.03"]
[Round "2"]
[White "Busch, Lara Sophie"]
[Black "Noennig, Lotte"]
[Result "1-0"]
[ECO "C54"]
[WhiteElo "1714"]
[BlackElo "1658"]
[Annotator "NA RC"]
[PlyCount "73"]
[EventDate "2024.10.03"]
[EventType "team-swiss"]
[EventRounds "7"]
[EventCountry "GER"]
[SourceTitle "playchess.com"]
[Source "ChessBase"]
[SourceQuality "1"]
[TimeControl "40/5400+30:1800+30"]

1. e4 {[%emt 0:00:01]} e5 {[%emt 0:00:26]} 2. Nf3 {[%emt 0:00:08]} Nc6 {[%emt 0:00:19]} 3. Bc4 {[%emt 0:00:12]} Bc5 {[%emt 0:00:15]} 4. d3 {[%emt 0:00:13]} Nf6 {[%emt 0:00:43]} 5. c3 {[%emt 0:00:24]} d6 {[%emt 0:01:01]} 6. O-O {[%emt 0:00:33]} h6 {[%emt 0:01:55]} 7. Nbd2 {[%emt 0:00:24]} O-O {[%emt 0:01:49]} 8. Re1 {[%emt 0:02:38]} Be6 {[%emt 0:03:05]} 9. Bb3 {[%emt 0:00:30]} Bb6 {[%emt 0:01:15]} 10. Nf1 {[%emt 0:01:20]} Ng4 {[%emt 0:03:52]} 11. Re2 {[%emt 0:01:03]} Ne7 {[%emt 0:01:34]} 12. h3 {[%emt 0:00:45]} Nf6 {[%emt 0:00:15]} 13. Be3 {[%emt 0:01:53]} Ng6 {[%emt 0:01:36]} 14. Ng3 {[%emt 0:01:18]} Re8 {[%emt 0:02:37]} 15. Qd2 {[%emt 0:04:30]} d5 {[%emt 0:03:54]} 16. Qc2 {[%emt 0:10:57]} Qd7 {[%emt 0:02:25]} 17. Rd1 {[%emt 0:04:48]} a5 {[%emt 0:02:22]} 18. Ba4 {[%emt 0:01:41]} c6 {[%emt 0:01:44]} 19. Bxb6 {[%emt 0:01:15]} Ra6 {[%emt 0:02:29]} 20. Be3 {[%emt 0:07:35]} b5 {[%emt 0:01:30]} 21. d4 {[%emt 0:09:29]} exd4 {[%emt 0:07:15]} 22. Bxd4 {[%emt 0:04:39]} bxa4 {[%emt 0:02:52]} 23. Bxf6 {[%emt 0:06:14]} gxf6 {[%emt 0:01:08]} 24. Qxa4 {[%emt 0:00:45]} Kh7 {[%emt 0:10:48]} 25. exd5 {[%emt 0:03:47]} cxd5 {[%emt 0:07:58]} 26. Qxd7 {[%emt 0:00:31]} Bxd7 {[%emt 0:00:07]} 27. Rxe8 {[%emt 0:01:04]} Bxe8 {[%emt 0:00:21]} 28. Rxd5 {[%emt 0:00:33]} a4 {[%emt 0:10:13]} 29. Nd4 {[%emt 0:04:44]} Rb6 {[%emt 0:04:47]} 30. b3 {[%emt 0:04:48]} axb3 {[%emt 0:06:41]} 31. axb3 {[%emt 0:00:10]} Ne5 {[%emt 0:01:56]} 32. Rd8 {[%emt 0:04:04]} Bd7 {[%emt 0:01:42]} 33. f4 {[%emt 0:00:47]} Rb7 {[%emt 0:10:08]} 34. fxe5 {[%emt 0:00:59]} fxe5 {[%emt 0:00:09]} 35. Nf3 {[%emt 0:01:50]} f6 {[%emt 0:00:51]} 36. Ne4 {[%emt 0:00:37]} Kg7 {[%emt 0:01:05]} 37. Nc5 {[%emt 0:00:24]} 1-0

[Event "DLM Youth 2024"]
[Site "Tuebingen"]
[Date "2024.10.03"]
[Round "2"]
[White "Rafikova, Ailin"]
[Black "Tu, Tiffany"]
[Result "0-1"]
[ECO "C69"]
[WhiteElo "1707"]
[BlackElo "1675"]
[Annotator "NA RC"]
[PlyCount "100"]
[EventDate "2024.10.03"]
[EventType "team-swiss"]
[EventRounds "7"]
[EventCountry "GER"]
[SourceTitle "playchess.com"]
[Source "ChessBase"]
[SourceQuality "1"]
[TimeControl "40/5400+30:1800+30"]

1. e4 {[%emt 0:00:03]} e5 {[%emt 0:00:11]} 2. Nf3 {[%emt 0:00:11]} Nc6 {[%emt 0:00:04]} 3. Bb5 {[%emt 0:00:24]} a6 {[%emt 0:00:04]} 4. Bxc6 {[%emt 0:00:17]} dxc6 {[%emt 0:00:03]} 5. O-O {[%emt 0:00:10]} f6 {[%emt 0:00:05]} 6. d4 {[%emt 0:00:11]} exd4 {[%emt 0:01:56]} 7. Nxd4 {[%emt 0:00:09]} Bd7 {[%emt 0:01:03]} 8. Nc3 {[%emt 0:04:17]} Bd6 {[%emt 0:03:02]} 9. Be3 {[%emt 0:02:12]} Qe7 {[%emt 0:01:17]} 10. Qf3 {[%emt 0:06:23]} Qe5 {[%emt 0:04:52]} 11. Qg3 {[%emt 0:08:17]} Qxg3 {[%emt 0:03:40]} 12. hxg3 {[%emt 0:00:44]} Ne7 {[%emt 0:01:12]} 13. Rad1 {[%emt 0:03:51]} O-O-O {[%emt 0:01:26]} 14. Nb3 {[%emt 0:10:18]} Ng6 {[%emt 0:07:32]} 15. Nc5 {[%emt 0:08:45]} Ne5 {[%emt 0:06:02]} 16. Nxd7 {[%emt 0:14:12]} Rxd7 {[%emt 0:01:45]} 17. b3 {[%emt 0:10:59]} Rhd8 {[%emt 0:06:28]} 18. Bc1 {[%emt 0:10:22]} Ng4 {[%emt 0:10:08]} 19. Rd2 {[%emt 0:08:02]} h5 {[%emt 0:08:36]} 20. Ne2 {[%emt 0:03:09]} Bc5 {[%emt 0:06:09]} 21. Rxd7 {[%emt 0:03:23]} Rxd7 {[%emt 0:00:33]} 22. Nc3 {[%emt 0:01:19]} Re7 {[%emt 0:04:52]} 23. a3 {[%emt 0:02:14]} f5 {[%emt 0:01:38]} 24. Bg5 {[%emt 0:01:06]} Re8 {[%emt 0:01:23]} 25. b4 {[%emt 0:00:34]} Ba7 {[%emt 0:00:44]} 26. Ne2 {[%emt 0:00:28]} Rxe4 {[%emt 0:01:11]} 27. Rd1 {[%emt 0:01:07]} Bxf2+ {[%emt 0:00:48]} 28. Kf1 {[%emt 0:00:09]} b6 {[%emt 0:01:41]} 29. Nc3 {[%emt 0:00:33]} Rc4 {[%emt 0:01:05]} 30. Rd3 {[%emt 0:00:30]} Rd4 {[%emt 0:05:13]} 31. Rxd4 {[%emt 0:00:43]} Bxd4 {[%emt 0:00:09]} 32. Nb1 {[%emt 0:00:29]} Be3 {[%emt 0:02:25]} 33. Be7 {[%emt 0:00:41]} Kd7 {[%emt 0:00:24]} 34. Bf8 {[%emt 0:00:03]} Bh6 {[%emt 0:00:17]} 35. b5 {[%emt 0:00:32]} cxb5 {[%emt 0:00:25]} 36. Bb4 {[%emt 0:00:04]} Ne3+ {[%emt 0:00:09]} 37. Ke2 {[%emt 0:00:40]} Nxc2 {[%emt 0:00:15]} 38. Bc3 {[%emt 0:00:29]} g6 {[%emt 0:01:20]} 39. Kf3 {[%emt 0:00:39]} c5 {[%emt 0:00:32]} 40. Bd2 {[%emt 0:00:51]} Bxd2 {[%emt 0:00:17]} 41. Nxd2 {[%emt 0:30:06]} Nxa3 {[%emt 0:30:03]} 42. Kf4 {[%emt 0:00:14]} c4 {[%emt 0:00:26]} 43. Kg5 {[%emt 0:00:12]} c3 {[%emt 0:00:15]} 44. Nb3 {[%emt 0:00:21]} a5 {[%emt 0:00:12]} 45. Kxg6 {[%emt 0:00:07]} c2 {[%emt 0:00:06]} 46. Kxf5 {[%emt 0:00:30]} a4 {[%emt 0:00:14]} 47. Nc1 {[%emt 0:00:20]} b4 {[%emt 0:00:15]} 48. Ke4 {[%emt 0:00:37]} b3 {[%emt 0:00:17]} 49. Kd3 {[%emt 0:00:44]} b2 {[%emt 0:00:07]} 50. Kd2 {[%emt 0:00:08]} b1=Q {[%emt 0:00:15]} 0-1

[Event "DLM Youth 2024"]
[Site "Tuebingen"]
[Date "2024.10.03"]
[Round "2"]
[White "Loos, Tilda"]
[Black "Steinbrenner, Peter"]
[Result "0-1"]
[ECO "B22"]
[WhiteElo "1700"]
[BlackElo "1952"]
[Annotator "NA RC"]
[PlyCount "114"]
[EventDate "2024.10.03"]
[EventType "team-swiss"]
[EventRounds "7"]
[EventCountry "GER"]
[SourceTitle "playchess.com"]
[Source "ChessBase"]
[SourceQuality "1"]
[TimeControl "40/5400+30:1800+30"]

1. e4 {[%emt 0:00:00]} c5 {[%emt 0:00:13]} 2. d4 {[%emt 0:00:03]} cxd4 {[%emt 0:00:15]} 3. c3 {[%emt 0:00:02]} Nf6 {[%emt 0:00:15]} 4. e5 {[%emt 0:00:02]} Nd5 {[%emt 0:00:16]} 5. Nf3 {[%emt 0:00:03]} e6 {[%emt 0:00:13]} 6. cxd4 {[%emt 0:01:31]} d6 {[%emt 0:00:25]} 7. Bc4 {[%emt 0:02:33]} Be7 {[%emt 0:01:20]} 8. O-O {[%emt 0:02:18]} Nb6 {[%emt 0:00:25]} 9. Bb3 {[%emt 0:01:32]} Nc6 {[%emt 0:02:23]} 10. Nc3 {[%emt 0:01:58]} O-O {[%emt 0:01:13]} 11. Be3 {[%emt 0:03:18]} Na5 {[%emt 0:02:29]} 12. Bc2 {[%emt 0:01:24]} Nac4 {[%emt 0:11:13]} 13. Qd3 {[%emt 0:01:51]} g6 {[%emt 0:00:23]} 14. Bh6 {[%emt 0:00:57]} Re8 {[%emt 0:00:15]} 15. b3 {[%emt 0:02:51]} Na3 {[%emt 0:04:13]} 16. Rad1 {[%emt 0:03:31]} Nd5 {[%emt 0:05:53]} 17. Qd2 {[%emt 0:14:19]} dxe5 {[%emt 0:03:05]} 18. Nxd5 {[%emt 0:02:42]} exd5 {[%emt 0:01:10]} 19. dxe5 {[%emt 0:02:44]} Nxc2 {[%emt 0:01:01]} 20. Qxc2 {[%emt 0:00:10]} Be6 {[%emt 0:00:14]} 21. Be3 {[%emt 0:10:25]} Rc8 {[%emt 0:07:05]} 22. Qd2 {[%emt 0:03:45]} a6 {[%emt 0:01:48]} 23. Nd4 {[%emt 0:02:44]} Bc5 {[%emt 0:05:49]} 24. Nxe6 {[%emt 0:04:46]} fxe6 {[%emt 0:01:35]} 25. Bg5 {[%emt 0:03:32]} Be7 {[%emt 0:02:33]} 26. Be3 {[%emt 0:01:12]} Qc7 {[%emt 0:01:08]} 27. Qd4 {[%emt 0:04:33]} Bc5 {[%emt 0:03:08]} 28. Qxc5 {[%emt 0:01:20]} Qxc5 {[%emt 0:00:21]} 29. Bxc5 {[%emt 0:00:05]} Rxc5 {[%emt 0:00:04]} 30. Rc1 {[%emt 0:01:28]} Rec8 {[%emt 0:00:26]} 31. Rxc5 {[%emt 0:00:37]} Rxc5 {[%emt 0:00:07]} 32. f4 {[%emt 0:00:50]} Kf7 {[%emt 0:00:59]} 33. Rf2 {[%emt 0:02:04]} Ke7 {[%emt 0:01:47]} 34. Rd2 {[%emt 0:00:33]} Rc3 {[%emt 0:01:01]} 35. Kf2 {[%emt 0:00:26]} Kd7 {[%emt 0:00:14]} 36. Ke2 {[%emt 0:04:09]} Kc6 {[%emt 0:05:34]} 37. Rd3 {[%emt 0:01:09]} Rc2+ {[%emt 0:06:04]} 38. Rd2 {[%emt 0:00:07]} Rc1 {[%emt 0:00:23]} 39. Kd3 {[%emt 0:02:49]} Kc5 {[%emt 0:03:01]} 40. a3 {[%emt 0:03:28]} a5 {[%emt 0:04:29]} 41. b4+ {[%emt 0:35:13]} axb4 {[%emt 0:32:35]} 42. axb4+ {[%emt 0:00:20]} Kb5 {[%emt 0:04:20]} 43. g4 Rf1 {[%emt 0:00:38]} 44. Ke3 {[%emt 0:04:20]} Kxb4 {[%emt 0:00:41]} 45. Rb2+ {[%emt 0:01:05]} Kc3 {[%emt 0:00:21]} 46. Rxb7 {[%emt 0:00:40]} d4+ {[%emt 0:03:44]} 47. Ke4 {[%emt 0:00:51]} Re1+ {[%emt 0:00:15]} 48. Kf3 {[%emt 0:00:11]} Re3+ {[%emt 0:00:41]} 49. Kf2 {[%emt 0:00:20]} Kd3 {[%emt 0:00:38]} 50. Rxh7 {[%emt 0:05:49]} Ke4 {[%emt 0:04:33]} 51. f5 {[%emt 0:00:00]} gxf5 {[%emt 0:00:00]} 52. g5 {[%emt 0:00:00]} Rf3+ {[%emt 0:00:00]} 53. Ke2 {[%emt 0:00:00]} d3+ {[%emt 0:00:00]} 54. Kd2 {[%emt 0:00:00]} Rf2+ {[%emt 0:00:00]} 55. Ke1 {[%emt 0:00:00]} Rg2 {[%emt 0:00:00]} 56. Rh4+ {[%emt 0:00:00]} f4 {[%emt 0:00:00]} 57. Kf1 {[%emt 0:00:00]} Rxg5 {[%emt 0:02:31]} 0-1

[Event "DLM Youth 2024"]
[Site "Tuebingen"]
[Date "2024.10.03"]
[Round "2"]
[White "Huppert, Anna"]
[Black "Bezsonna, Polina"]
[Result "0-1"]
[ECO "B23"]
[WhiteElo "1661"]
[BlackElo "1905"]
[Annotator "NA RC"]
[PlyCount "120"]
[EventDate "2024.10.03"]
[EventType "team-swiss"]
[EventRounds "7"]
[EventCountry "GER"]
[SourceTitle "playchess.com"]
[Source "ChessBase"]
[SourceQuality "1"]
[TimeControl "40/5400+30:1800+30"]

1. e4 {[%emt 0:00:03]} c5 {[%emt 0:00:04]} 2. Nc3 {[%emt 0:00:07]} Nc6 {[%emt 0:00:15]} 3. f4 {[%emt 0:00:10]} g6 {[%emt 0:00:05]} 4. Nf3 {[%emt 0:00:06]} Bg7 {[%emt 0:00:11]} 5. Bb5 {[%emt 0:00:14]} Nd4 {[%emt 0:00:09]} 6. Bc4 {[%emt 0:00:10]} e6 {[%emt 0:00:08]} 7. O-O {[%emt 0:00:18]} Ne7 {[%emt 0:01:39]} 8. d3 {[%emt 0:00:46]} a6 {[%emt 0:00:59]} 9. Nxd4 {[%emt 0:01:50]} Bxd4+ {[%emt 0:02:34]} 10. Kh1 {[%emt 0:00:16]} d5 {[%emt 0:01:34]} 11. Bb3 {[%emt 0:02:28]} b5 {[%emt 0:06:42]} 12. a3 {[%emt 0:11:27]} Bb7 {[%emt 0:04:23]} 13. e5 {[%emt 0:06:31]} Nf5 {[%emt 0:04:33]} 14. Qe1 {[%emt 0:04:06]} h5 {[%emt 0:10:56]} 15. Ne2 {[%emt 0:15:41]} Be3 {[%emt 0:02:26]} 16. Ng3 {[%emt 0:12:56]} Bxc1 {[%emt 0:13:56]} 17. Rxc1 {[%emt 0:00:49]} Nd4 {[%emt 0:05:00]} 18. Ba2 {[%emt 0:03:18]} h4 {[%emt 0:00:55]} 19. Ne2 {[%emt 0:01:57]} Nf5 {[%emt 0:01:51]} 20. Ng1 {[%emt 0:13:19]} d4 {[%emt 0:20:45]} 21. Nh3 {[%emt 0:09:49]} Qd7 {[%emt 0:03:12]} 22. Rf2 {[%emt 0:04:22]} Bc6 {[%emt 0:03:33]} 23. Kg1 {[%emt 0:04:08]} Qb7 {[%emt 0:00:33]} 24. Ng5 {[%emt 0:02:51]} Ne3 {[%emt 0:07:27]} 25. Ne4 {[%emt 0:00:37]} Bxe4 {[%emt 0:00:23]} 26. dxe4 {[%emt 0:00:04]} Qxe4 {[%emt 0:01:15]} 27. Qe2 {[%emt 0:02:27]} h3 {[%emt 0:02:16]} 28. g3 {[%emt 0:00:26]} Rd8 {[%emt 0:03:53]} 29. Bb1 {[%emt 0:00:12]} Qb7 {[%emt 0:01:54]} 30. c3 {[%emt 0:01:41]} Nc4 {[%emt 0:00:52]} 31. Be4 {[%emt 0:00:55]} Qb6 {[%emt 0:00:43]} 32. Rd1 {[%emt 0:01:45]} dxc3 {[%emt 0:00:38]} 33. bxc3 {[%emt 0:00:37]} Nxa3 {[%emt 0:00:30]} 34. Rxd8+ {[%emt 0:00:27]} Qxd8 {[%emt 0:00:02]} 35. Bc6+ {[%emt 0:00:31]} Kf8 {[%emt 0:00:15]} 36. Qe3 {[%emt 0:00:23]} Qb6 {[%emt 0:00:40]} 37. Be4 {[%emt 0:00:32]} Kg7 {[%emt 0:00:15]} 38. g4 {[%emt 0:00:19]} Nc4 {[%emt 0:00:30]} 39. Qd3 {[%emt 0:00:47]} Qd8 {[%emt 0:00:57]} 40. Qc2 {[%emt 0:00:32]} Ne3 {[%emt 0:00:36]} 41. Qe2 {[%emt 0:01:06]} Qd1+ {[%emt 0:03:00]} 42. Qxd1 {[%emt 0:00:06]} Nxd1 {[%emt 0:00:06]} 43. Rf3 {[%emt 0:01:24]} Nb2 {[%emt 0:01:19]} 44. f5 {[%emt 0:00:14]} exf5 {[%emt 0:02:31]} 45. gxf5 {[%emt 0:00:08]} gxf5 {[%emt 0:00:33]} 46. Bxf5 {[%emt 0:03:38]} Re8 {[%emt 0:02:16]} 47. Re3 {[%emt 0:01:35]} Nc4 {[%emt 0:00:23]} 48. Re4 {[%emt 0:02:54]} Rxe5 {[%emt 0:01:13]} 49. Rxe5 {[%emt 0:01:07]} Nxe5 {[%emt 0:00:04]} 50. Kf1 {[%emt 0:02:31]} a5 {[%emt 0:00:48]} 51. Ke2 {[%emt 0:00:19]} Kf6 {[%emt 0:00:37]} 52. Bxh3 {[%emt 0:02:05]} Kg5 {[%emt 0:00:37]} 53. Bf1 {[%emt 0:02:20]} Nc4 {[%emt 0:01:41]} 54. Ke1 {[%emt 0:03:21]} a4 {[%emt 0:00:27]} 55. Bd3 {[%emt 0:01:14]} a3 {[%emt 0:01:01]} 56. Bb1 {[%emt 0:00:10]} f5 {[%emt 0:00:13]} 57. Ba2 {[%emt 0:02:01]} f4 {[%emt 0:00:42]} 58. Kf2 {[%emt 0:00:52]} Na5 {[%emt 0:00:23]} 59. Kf3 {[%emt 0:00:50]} b4 {[%emt 0:00:19]} 60. cxb4 {[%emt 0:02:26]} cxb4 {[%emt 0:00:06]} 0-1

[Event "DLM Youth 2024"]
[Site "Tuebingen"]
[Date "2024.10.03"]
[Round "2"]
[White "Ratushna, Olha"]
[Black "Tu, Audrey"]
[Result "1/2-1/2"]
[ECO "C47"]
[WhiteElo "1644"]
[BlackElo "1722"]
[Annotator "NA RC"]
[PlyCount "69"]
[EventDate "2024.10.03"]
[EventType "team-swiss"]
[EventRounds "7"]
[EventCountry "GER"]
[SourceTitle "playchess.com"]
[Source "ChessBase"]
[SourceQuality "1"]
[TimeControl "40/5400+30:1800+30"]

1. e4 {[%emt 0:00:01]} e5 {[%emt 0:00:04]} 2. Nf3 {[%emt 0:00:04]} Nc6 {[%emt 0:00:04]} 3. Nc3 {[%emt 0:00:06]} Nf6 {[%emt 0:00:05]} 4. d4 {[%emt 0:00:10]} exd4 {[%emt 0:00:05]} 5. Nxd4 {[%emt 0:00:04]} Bb4 {[%emt 0:00:07]} 6. Nxc6 {[%emt 0:00:07]} bxc6 {[%emt 0:00:06]} 7. Bd3 {[%emt 0:00:13]} d5 {[%emt 0:01:19]} 8. exd5 {[%emt 0:00:06]} cxd5 {[%emt 0:00:06]} 9. O-O {[%emt 0:00:16]} O-O {[%emt 0:00:26]} 10. h3 {[%emt 0:00:14]} c6 {[%emt 0:05:03]} 11. Qf3 {[%emt 0:01:41]} Be6 {[%emt 0:02:43]} 12. Bg5 {[%emt 0:01:26]} Be7 {[%emt 0:01:14]} 13. Ne2 {[%emt 0:02:36]} h6 {[%emt 0:06:09]} 14. Bh4 {[%emt 0:01:24]} Nd7 {[%emt 0:13:24]} 15. Bxe7 {[%emt 0:02:23]} Qxe7 {[%emt 0:00:13]} 16. Qe3 {[%emt 0:03:19]} Nc5 {[%emt 0:04:04]} 17. Bf5 {[%emt 0:02:21]} Rfe8 {[%emt 0:02:02]} 18. Bxe6 {[%emt 0:01:46]} Nxe6 {[%emt 0:00:43]} 19. Qc3 {[%emt 0:02:19]} Rac8 {[%emt 0:04:20]} 20. Rfe1 {[%emt 0:00:46]} Qd6 {[%emt 0:03:01]} 21. Ng3 {[%emt 0:01:45]} Nf4 {[%emt 0:04:53]} 22. Kf1 {[%emt 0:05:22]} Qg6 {[%emt 0:08:12]} 23. Qf3 {[%emt 0:09:17]} Ne6 {[%emt 0:03:02]} 24. Qf5 {[%emt 0:01:45]} Qxf5 {[%emt 0:01:44]} 25. Nxf5 {[%emt 0:00:10]} Rcd8 {[%emt 0:01:09]} 26. Re2 {[%emt 0:01:58]} Nf4 {[%emt 0:02:12]} 27. Rxe8+ {[%emt 0:02:16]} Rxe8 {[%emt 0:00:09]} 28. h4 {[%emt 0:00:58]} Re5 {[%emt 0:03:38]} 29. Nd4 {[%emt 0:00:52]} Re4 {[%emt 0:05:18]} 30. c3 {[%emt 0:02:42]} Nd3 {[%emt 0:07:40]} 31. g3 {[%emt 0:01:29]} c5 {[%emt 0:01:17]} 32. Nc6 {[%emt 0:00:55]} Nxb2 {[%emt 0:01:03]} 33. Nxa7 {[%emt 0:01:06]} Na4 {[%emt 0:01:26]} 34. Nb5 {[%emt 0:02:15]} Rc4 {[%emt 0:01:10]} 35. Rd1 {[%emt 0:02:04]} 1/2-1/2

[Event "DLM Youth 2024"]
[Site "Tuebingen"]
[Date "2024.10.03"]
[Round "2"]
[White "Roessling, Laura Marie"]
[Black "Andersen, Jonathan"]
[Result "1-0"]
[ECO "B42"]
[WhiteElo "1624"]
[BlackElo "1676"]
[Annotator "NA RC"]
[PlyCount "41"]
[EventDate "2024.10.03"]
[EventType "team-swiss"]
[EventRounds "7"]
[EventCountry "GER"]
[SourceTitle "playchess.com"]
[Source "ChessBase"]
[SourceQuality "1"]
[TimeControl "40/5400+30:1800+30"]

1. e4 {[%emt 0:00:03]} c5 {[%emt 0:00:04]} 2. Nf3 {[%emt 0:00:54]} e6 {[%emt 0:00:11]} 3. d4 {[%emt 0:00:54]} cxd4 {[%emt 0:00:20]} 4. Nxd4 {[%emt 0:00:43]} a6 {[%emt 0:00:12]} 5. Bd3 {[%emt 0:12:36]} Bc5 {[%emt 0:00:08]} 6. Nb3 {[%emt 0:00:57]} Ba7 {[%emt 0:00:08]} 7. O-O {[%emt 0:02:58]} Ne7 {[%emt 0:00:29]} 8. Nc3 {[%emt 0:06:41]} Nbc6 {[%emt 0:02:18]} 9. Kh1 {[%emt 0:02:51]} b5 {[%emt 0:01:29]} 10. f4 {[%emt 0:04:42]} b4 {[%emt 0:01:57]} 11. Ne2 {[%emt 0:03:17]} d5 {[%emt 0:00:31]} 12. Ng3 {[%emt 0:01:28]} h5 {[%emt 0:05:18]} 13. Qf3 {[%emt 0:08:03]} h4 {[%emt 0:00:16]} 14. Nh5 {[%emt 0:01:14]} Kf8 {[%emt 0:07:40]} 15. Qg4 {[%emt 0:11:16]} g6 {[%emt 0:00:56]} 16. Nf6 {[%emt 0:01:33]} h3 {[%emt 0:01:38]} 17. Qg5 {[%emt 0:12:27]} hxg2+ {[%emt 0:00:09]} 18. Kxg2 {[%emt 0:02:09]} dxe4 {[%emt 0:12:33]} 19. Bxe4 {[%emt 0:03:34]} e5 {[%emt 0:01:25]} 20. f5 {[%emt 0:02:23]} Bxf5 {[%emt 0:00:38]} 21. Qh6+ {[%emt 0:00:19]} 1-0

[Event "DLM Youth 2024"]
[Site "Tuebingen"]
[Date "2024.10.03"]
[Round "2"]
[White "Wang, Enya Marie"]
[Black "Kateryniuk, Ivan"]
[Result "1-0"]
[ECO "C42"]
[WhiteElo "1613"]
[BlackElo "1860"]
[Annotator "NA RC"]
[PlyCount "79"]
[EventDate "2024.10.03"]
[EventType "team-swiss"]
[EventRounds "7"]
[EventCountry "GER"]
[SourceTitle "playchess.com"]
[Source "ChessBase"]
[SourceQuality "1"]
[TimeControl "40/5400+30:1800+30"]

1. e4 {[%emt 0:00:01]} e5 {[%emt 0:00:07]} 2. Nf3 {[%emt 0:00:05]} Nf6 {[%emt 0:00:08]} 3. Nxe5 {[%emt 0:00:06]} d6 {[%emt 0:00:03]} 4. Nf3 {[%emt 0:00:07]} Nxe4 {[%emt 0:00:02]} 5. Nc3 {[%emt 0:00:10]} Nxc3 {[%emt 0:00:02]} 6. dxc3 {[%emt 0:00:10]} Be7 {[%emt 0:00:13]} 7. Be3 {[%emt 0:00:19]} Nd7 {[%emt 0:00:07]} 8. Qd2 {[%emt 0:00:07]} Nf6 {[%emt 0:00:41]} 9. O-O-O {[%emt 0:00:23]} O-O {[%emt 0:00:18]} 10. Bd3 {[%emt 0:00:11]} c6 {[%emt 0:00:07]} 11. Kb1 {[%emt 0:01:52]} a5 {[%emt 0:02:11]} 12. h3 {[%emt 0:01:07]} b5 {[%emt 0:00:31]} 13. Nd4 {[%emt 0:01:25]} Bd7 {[%emt 0:00:22]} 14. Nf5 {[%emt 0:02:36]} c5 {[%emt 0:04:28]} 15. g4 {[%emt 0:05:00]} b4 {[%emt 0:05:51]} 16. Nxe7+ {[%emt 0:03:54]} Qxe7 {[%emt 0:00:02]} 17. Rhe1 {[%emt 0:02:09]} bxc3 {[%emt 0:01:15]} 18. Qxc3 {[%emt 0:00:36]} Nd5 {[%emt 0:00:57]} 19. Bxh7+ {[%emt 0:02:30]} Kxh7 {[%emt 0:00:28]} 20. Rxd5 {[%emt 0:01:40]} Be6 {[%emt 0:10:23]} 21. Qd3+ {[%emt 0:00:30]} Kg8 {[%emt 0:01:42]} 22. Rxd6 {[%emt 0:01:19]} c4 {[%emt 0:01:01]} 23. Qd2 {[%emt 0:03:05]} Rab8 {[%emt 0:17:40]} 24. Bc5 {[%emt 0:03:08]} Qc7 {[%emt 0:05:38]} 25. Qd4 {[%emt 0:08:18]} Rfc8 {[%emt 0:13:30]} 26. Bb6 {[%emt 0:03:41]} Qe7 {[%emt 0:00:45]} 27. f4 {[%emt 0:04:53]} c3 {[%emt 0:04:44]} 28. b3 {[%emt 0:00:47]} Qh4 {[%emt 0:01:58]} 29. Qe3 {[%emt 0:04:40]} a4 {[%emt 0:14:15]} 30. f5 {[%emt 0:02:09]} axb3 {[%emt 0:14:29]} 31. fxe6 {[%emt 0:03:21]} bxa2+ {[%emt 0:00:22]} 32. Ka1 {[%emt 0:02:09]} f5 {[%emt 0:01:15]} 33. e7 {[%emt 0:01:59]} f4 {[%emt 0:00:44]} 34. Rd8+ {[%emt 0:01:50]} Rxd8 {[%emt 0:00:32]} 35. Qe6+ {[%emt 0:00:17]} Kh7 {[%emt 0:00:33]} 36. exd8=Q {[%emt 0:01:24]} Rxd8 {[%emt 0:00:09]} 37. Bxd8 {[%emt 0:00:39]} Qxd8 {[%emt 0:00:07]} 38. Qe4+ {[%emt 0:00:48]} Kh6 {[%emt 0:00:47]} 39. Qxf4+ {[%emt 0:00:17]} Kh7 {[%emt 0:00:26]} 40. Qe4+ {[%emt 0:01:01]} 1-0